Cogmind - Beta 15 @@@ ROGUE MODE // 2025.07.08 @ 10:12:06 Player: CSF Result: Destroyed by U7-UZP(R) with Subdweller Laser Performance ------------- Evolutions (0) 0 Regions Visited (3) 600 Robots Destroyed (32) 160 Value Destroyed (559) 559 Prototype IDs (2) 40 Alien Tech Used (0) 0 Bonus (0) 0 TOTAL SCORE: 1359 Bonus ------- None Cogmind --------- Core Integrity 0/250 Matter 263/300 Energy 80/160 System Corruption 0% Temperature Cool (6) Movement Rolling (115) Ox1 Location -10/Subcaves Parts ------- > --- POWER (1) -------- Light Nuclear Core > --- PROPULSION (2) --- Light Treads Compact Wheel > --- UTILITY (2) ------ Large Storage Unit > --- WEAPON (2) ------- Light Assault Rifle Light Assault Rifle > --- INVENTORY (15) --- Flight Unit Medium Storage Unit Compact Matter Pod (150) Sensor Array Signal Interpreter Improved Terrain Scanner Seismic Detector Hacking Suite EM Pulse Gun Beam Cannon Datajack Mining Laser Peak State ------------ > --- POWER ------------ Ion Engine > --- PROPULSION ------- Aluminum Leg Aluminum Leg > --- UTILITY ---------- Small Storage Unit Improved Terrain Scanner > --- WEAPON ----------- Light Assault Rifle Light Assault Rifle > --- INVENTORY -------- Light Ion Engine Light Treads Light Treads Wheel Wheel EM Pulse Gun [Rating: 9] Favorites ----------- Power Light Ion Engine Engine Light Ion Engine Power Core Light Nuclear Core Propulsion Light Treads Treads Light Treads Leg Aluminum Leg Wheel Compact Wheel Utility Seismic Detector Device Seismic Detector Storage Large Storage Unit Processor Targeting Computer Weapon Light Assault Rifle Energy Gun Small Laser Ballistic Gun Light Assault Rifle Special Weapon Mining Laser Build | -11 -10 -10 -10 ------- Run | Yrd Mat Min Sub Slots Evolved . | . . . . Power . | . . . . Propulsion . | . . . . Utility . | . . . . Weapon . | . . . . Parts Attached 24 | 3 18 . 3 Power 2 | . 1 . 1 Engine 1 | . 1 . . Core 1 | . . . 1 Reactor . | . . . . Propulsion 9 | . 9 . . Treads 4 | . 4 . . Leg 3 | . 3 . . Wheel 2 | . 2 . . Hover . | . . . . Flight . | . . . . Utility 6 | 2 3 . 1 Device 3 | 2 . . 1 Storage 2 | . 2 . . Processor 1 | . 1 . . Hackware . | . . . . Protection . | . . . . Artifact . | . . . . Weapon 7 | 1 5 . 1 Energy Gun 2 | . 2 . . Energy Cannon . | . . . . Ballistic Gun 4 | 1 2 . 1 Ballistic Cannon . | . . . . Launcher . | . . . . Special Weapon 1 | . 1 . . Impact Weapon . | . . . . Slashing Weapon . | . . . . Piercing Weapon . | . . . . Special Melee Weapon . | . . . . Unidentified Prototypes . | . . . . Parts Lost 5 | . 1 . 4 Power 2 | . 1 . 1 Propulsion 1 | . . . 1 Utility 1 | . . . 1 Weapon 1 | . . . 1 Highest Loss Streak 4 | . 1 . 4 To Critical Strikes . | . . . . Average Backups 11 | 6 10 15 15 Power . | 1 . 1 1 Propulsion 3 | 4 3 2 2 Utility 5 | . 4 6 7 Weapon 2 | 1 1 4 4 Tool/Special . | . . . . Unused Backups 13 | . 6 . 7 Power . | . . . . Propulsion 2 | . 1 . 1 Utility 9 | . 5 . 4 Weapon 1 | . . . 1 Tool/Special 1 | . . . 1 Average Slot Usage (%) 99 | . 99 100 85 Engine 13 | . 13 14 9 Treads 20 | . 18 26 18 Leg 3 | . 5 . . Wheel 3 | . 4 2 4 Device 8 | . 5 14 14 Storage 14 | . 14 14 14 Processor 5 | . 8 . . Energy Gun 5 | . 2 14 9 Ballistic Gun 22 | . 24 14 14 Peak Build Rating 9 | 9 9 9 9 Average Rating 8 | 6 7 8 7 On Entrance 7 | 6 7 9 9 Naked Turns . | . . . . Heaviest Build 26 | 13 26 26 . Greatest Support 40 | 20 40 40 . Greatest Overweight (x) 1 | . 1 1 . Average Overweight (x) . | . . . . Largest Inventory Capacity 15 | 8 15 15 15 Average Capacity 12 | 8 11 15 15 Most Carried 15 | 7 15 15 15 Average Carried 11 | 6 10 14 14 Final Capacity 15 | 8 15 15 15 Final Carried 15 | 7 15 15 12 Class Distribution -------------------- 100% | Mutant Dominant Class ---------------- Mutant | -10/Materials Mutant | -10/Mines Mutant | -10/Subcaves Resources | -11 -10 -10 -10 ----------- Run | Yrd Mat Min Sub Matter Collected 845 | 250 546 49 . Remotely . | . . . . Salvage Created 874 | 103 710 50 11 Parts 63 | 10 49 3 1 Haulers Intercepted 1 | . 1 . . Recyclers Shooed 2 | . 2 . . Parts Field Recycled . | . . . . Retrieved Matter . | . . . . Parts Self-Destructed . | . . . . Prevented . | . . . . Kills | -11 -10 -10 -10 ------- Run | Yrd Mat Min Sub Combat Hostiles Destroyed 18 | . 14 3 1 Guns 18 | . 14 3 1 Classes Destroyed 10 | 2 7 . 1 Worker 2 | . 2 . . Builder 2 | . 2 . . Tunneler 3 | 3 . . . Hauler 1 | . 1 . . Recycler 2 | 1 1 . . Operator 1 | . 1 . . Watcher 3 | . 3 . . Swarmer 9 | . 6 3 . Grunt 8 | . 8 . . Subdweller 1 | . . . 1 Best Kill Streak 5 | 3 5 2 1 Combat Bots Only 5 | . 5 2 1 Max Kills in Single Turn 2 | 1 2 1 1 Gunslinging . | . . . . Exploded . | . . . . Melee . | . . . . Uniques/NPCs Destroyed . | . . . . Combat | -11 -10 -10 -10 -------- Run | Yrd Mat Min Sub Hostile Shots Fired 112 | . 78 14 20 Missed 33 | . 25 2 6 Hits 79 | . 53 12 14 Projectile 79 | . 53 12 14 AOE 3 | . . . 3 Damage Taken 1142 | . 627 94 421 Core 252 | . 55 10 187 Absorbed by Shields . | . . . . Core Remaining (%) 100 | 100 . . . Volleys Fired 118 | 11 91 9 7 Largest 2 | 2 2 2 2 Hottest 100 | 60 100 60 60 Shots Fired 230 | 22 181 18 9 Gun 229 | 22 180 18 9 Cannon . | . . . . Launcher . | . . . . Special 1 | . 1 . . Kinetic 197 | 20 161 9 7 Thermal 13 | . 2 9 2 Explosive . | . . . . Electromagnetic 20 | 2 18 . . Robot Hit Streak 12 | 7 12 4 3 Robot Miss Streak 5 | 2 4 5 2 Penetration Max . | . . . . Secondary Targets 2 | . 2 . . Max Gunslinging Chain 1 | . 1 . . Shots Hit Robots 134 | 17 104 8 5 Core Hits 59 | 9 45 4 1 Critical Kills 1 | . . 1 . Critical Parts Destroyed . | . . . . Critical Strikes 1 | . . 1 . Destroy 1 | . . 1 . Melee Attacks . | . . . . Impact . | . . . . Slashing . | . . . . Piercing . | . . . . Sneak Attacks . | . . . . Combat Hostiles . | . . . . Follow-up Attacks . | . . . . Damage Inflicted 1306 | 136 1037 83 50 Guns 1263 | 136 994 83 50 Cannons . | . . . . Explosions 43 | . 43 . . Melee . | . . . . Ramming . | . . . . Kinetic 954 | 111 770 34 39 Thermal 114 | . 54 49 11 Explosive . | . . . . Electromagnetic 238 | 25 213 . . Impact . | . . . . Slashing . | . . . . Piercing . | . . . . Highest Corruption . | . . . . Average Corruption . | . . . . Corruption Purged . | . . . . Corruption Blocked . | . . . . Overload Shots . | . . . . Overflow Damage . | . . . . Projectiles . | . . . . Explosions . | . . . . Melee . | . . . . Knockbacks . | . . . . Impact . | . . . . Kinetic . | . . . . Secondary . | . . . . Self-Inflicted Damage . | . . . . Shots . | . . . . Rammed . | . . . . Targets Rammed . | . . . . Kicked . | . . . . Crushed . | . . . . Highest Temperature 169 | 20 169 40 . Average Temperature 44 | 15 51 20 . Received Heat Transfer 303 | . 261 . 42 Siege Activations . | . . . . Martial Activations . | . . . . Shielding Activations . | . . . . Robots Disrupted . | . . . . Combat Hostiles . | . . . . Robots Corrupted . | . . . . Combat Hostiles . | . . . . Parts Fried 1 | . 1 . . Impact Corruptions . | . . . . Robots Melted . | . . . . Combat Hostiles . | . . . . Parts Melted 1 | . . 1 . Heat Transferred 250 | . 125 100 25 Parts Sabotaged . | . . . . Parts Stolen . | . . . . Parts Stripped . | . . . . Power Chain Reactions 1 | . 1 . . Alert | -11 -10 -10 -10 ------- Run | Yrd Mat Min Sub Maximum Alert Level . | . . . . Low Security (%) 100 | 100 100 100 . Level 1 . | . . . . Level 2 . | . . . . Level 3 . | . . . . Level 4 . | . . . . Level 5 . | . . . . High Security . | . . . . Max Security . | . . . . Peak Influence 104 | 10 104 72 . Initial 17 | . 3 17 . Average 23 | 2 27 12 . Influence Increases 619 | 20 514 85 . Destroy 0b10 Robot/C 340 | . 280 60 . Destroy 0b10 Robot/NC 70 | 20 50 . . Destroy Leader 68 | . 58 10 . Successful Hack 6 | . 6 . . Disable Machine 30 | . 30 . . Lose Combat Pursuer 105 | . 90 15 . Influence Decreases 619 | 15 473 131 . Entered New Map 31 | . 2 29 . Time Decay 498 | 15 381 102 . Lost Part 10 | . 10 . . Purge Threat 80 | . 80 . . Squads Dispatched 1 | . 1 . . Investigation . | . . . . Extermination . | . . . . Reinforcement 1 | . 1 . . Assault . | . . . . Garrison . | . . . . Intercept . | . . . . Searches Triggered . | . . . . Construction Impeded . | . . . . Haulers Reinforced . | . . . . Active Scanning Responses . | . . . . Cargo Convoy Interrupts . | . . . . Stealth | -11 -10 -10 -10 --------- Run | Yrd Mat Min Sub Distress Signals 3 | . 3 . . Communications Jammed . | . . . . Distress Signals . | . . . . Times Spotted 43 | . 36 4 3 Peak Tracking Total 5 | . 5 3 3 Tactical Retreats 5 | . 4 1 . Traps | -11 -10 -10 -10 ------- Run | Yrd Mat Min Sub Traps Triggered 1 | . 1 . . Indirectly . | . . . . Trap Hack Attempts . | . . . . Triggered . | . . . . Disarmed . | . . . . Reprogrammed . | . . . . Reused . | . . . . Traps Extracted . | . . . . Installed . | . . . . Triggered . | . . . . Machines | -11 -10 -10 -10 ---------- Run | Yrd Mat Min Sub Machines Disabled 2 | . 2 . . Max in Single Turn 1 | . 1 . . Machines Repaired . | . . . . Machines Dismantled . | . . . . Machines Sabotaged . | . . . . Overloaded Fab Kills . | . . . . Hacking | -11 -10 -10 -10 --------- Run | Yrd Mat Min Sub Machines Accessed 8 | . 8 . . Terminals 5 | . 5 . . Fabricators . | . . . . Repair Stations 1 | . 1 . . Recycling Units 2 | . 2 . . Scanalyzers . | . . . . Garrison Access . | . . . . Total Hacks 20 | . 20 . . Successful 9 | . 9 . . Failed 11 | . 11 . . Catastrophic 1 | . 1 . . Database Lockouts . | . . . . Manual 8 | . 8 . . Terminals 11 | . 11 . . Fabricators . | . . . . Repair Stations 2 | . 2 . . Recycling Units 7 | . 7 . . Scanalyzers . | . . . . Garrison Access . | . . . . Terminal Hacks 6 | . 6 . . Robot Analysis 2 | . 2 . . Prototype ID Bank 1 | . 1 . . Unreport Threat 1 | . 1 . . Locate Traps 1 | . 1 . . Hauler Manifests 1 | . 1 . . Fabricator Hacks . | . . . . Repair Station Hacks . | . . . . Recycling Unit Hacks 3 | . 3 . . Retrieve Components 3 | . 3 . . Scanalyzer . | . . . . Garrison Access Hacks . | . . . . Unauthorized Hacks . | . . . . Terminals . | . . . . Fabricators . | . . . . Repair Stations . | . . . . Recycling Units . | . . . . Scanalyzers . | . . . . Garrison Access . | . . . . Data Cores Recovered . | . . . . Used . | . . . . Hacking Detections 7 | . 7 . . Full Trace Events . | . . . . Feedback Events . | . . . . Feedback Blocked . | . . . . Robot Schematics Acquired . | . . . . Robots Built . | . . . . Authchips . | . . . . Time . | . . . . Total Robot Build Rating . | . . . . Part Schematics Acquired . | . . . . Parts Built . | . . . . Authchips . | . . . . Time . | . . . . Total Part Build Rating . | . . . . Parts Repaired . | . . . . Time . | . . . . Parts Recycled . | . . . . Recycled Matter . | . . . . Retrieved Matter . | . . . . Retrieved Components 10 | . 10 . . Parts Scanalyzed . | . . . . Part Schematics Acquired . | . . . . Parts Damaged . | . . . . Bothacking | -11 -10 -10 -10 ------------ Run | Yrd Mat Min Sub Used RIF Installer . | . . . . Robots Hacked . | . . . . Non-combat . | . . . . Combat . | . . . . Robot Hacks Applied . | . . . . Relay Couplers Released . | . . . . Fabnet Peak Effective % . | . . . . Robots Rewired . | . . . . Allies Hacked . | . . . . Hacks Repelled . | . . . . Allies | -11 -10 -10 -10 -------- Run | Yrd Mat Min Sub Total Allies . | . . . . Largest Group . | . . . . Highest-Rated Group . | . . . . Highest-Rated Ally . | . . . . Total Orders . | . . . . Ally Attacks . | . . . . Total Damage . | . . . . Kills . | . . . . Allies Corrupted . | . . . . Allies Melted . | . . . . Intel | -11 -10 -10 -10 ------- Run | Yrd Mat Min Sub Active Infowar (turns) 1266 | 25 670 551 20 Terrain 21 | 21 . . . Structural 20 | . . . 20 Seismic 1225 | 4 670 551 . Robot Analysis Total 2 | . 2 . . Derelict Logs Recovered 1 | . . 1 . Drone Launches . | . . . . Drone Recoveries . | . . . . Exploration | -11 -10 -10 -10 ------------- Run | Yrd Mat Min Sub Turns Passed 2263 | 73 1618 551 21 Spaces Moved 1325 | 33 973 319 . Core . | . . . . Treads 633 | . 352 281 . Legs 222 | 33 189 . . Wheels 470 | . 432 38 . Hover . | . . . . Flight . | . . . . Fastest Speed 80 | 120 80 115 . Average Speed 132 | 120 125 154 . Slowest Speed 160 | 120 160 160 . Overloaded Moves . | . . . . Propulsion Burnouts . | . . . . Robots Hopped . | . . . . Potential Cave-ins . | . . . . Cave-ins Triggered . | . . . . Exploration Rate (%) 45 | 3 96 80 2 Regions Visited 3 Branch Regions 2 Pre-discovered Areas . | . . . . Known Exits Taken . | . . . . Unknown Exits Taken 3 | 1 1 1 . Scrap Searched 1 | . . 1 . Spaces Dug . | . . . . Terrain Destroyed . | . . . . Melee . | . . . . Projectile . | . . . . AOE . | . . . . Terrain Rammed . | . . . . Walls Destroyed . | . . . . Machines Disabled . | . . . . Actions | -11 -10 -10 -10 --------- Run | Yrd Mat Min Sub Total 1626 | 47 1207 360 12 Wait 103 | . 74 29 . Move 1322 | 32 972 318 . Hop . | . . . . Pick Up 17 | . 16 1 . Fast Attach 4 | 2 2 . . Attach 8 | . 4 1 3 Detach 1 | 1 . . . Swap 37 | 1 33 1 2 Drop 16 | . 15 1 . Fire 118 | 11 91 9 7 Melee . | . . . . Ram . | . . . . Kick . | . . . . Crush . | . . . . Escape Stasis . | . . . . Rewire . | . . . . Trap . | . . . . Miscellaneous . | . . . . Route ------- -11/Scrapyard -10/Materials (discovered 4 exits: [*Mat x3] / [*Min]) -10/Mines (discovered 3 exits: [*Mat x2] / [*Sub]) -10/Subcaves (discovered 1 exit: Rec) History --------- Turn | Location | Event 1 | -11/Scrapyard | Discovered new exit (range 2) 74 | -11/Scrapyard | Entered Materials 303 | -10/Materials | Build established: Mutant 479 | -10/Materials | Discovered new exit (range 16) 523 | -10/Materials | Discovered new exit (range 15) 870 | -10/Materials | Discovered new exit (range 6) 963 | -10/Materials | Discovered new exit (range 16) 1692 | -10/Materials | Entered Mines 2063 | -10/Mines | Discovered new exit (range 13) 2153 | -10/Mines | Discovered new exit (range 5) 2235 | -10/Mines | Discovered new exit (range 4) 2243 | -10/Mines | Entered Subcaves 2244 | -10/Subcaves | Approached by a straggling Scientist 2244 | -10/Subcaves | Identified exit to Recycling 2245 | -10/Subcaves | Ambushed by Subdwellers from Twisted Machinery 2250 | -10/Subcaves | Ambushed by Subdweller buried in earth 2251 | -10/Subcaves | Core integrity fell below 50% 2260 | -10/Subcaves | Core integrity fell below 20% 2264 | -10/Subcaves | Destroyed by U7-UZP(R) with Subdweller Laser Last Messages --------------- all the Subs lurking out here." Loading 1 Recycling entrance... 02245_ 7O-JJR(R) emerges from the Twisted Machinery. 02247_ 1A-VBO(c): "Hey, let me tag along and I can get us both out of this nasty situation. At least I think I can... The group I got separated from was talking about a shortcut back to the UFD." 02250_ Lgt. Ion Engine destroyed. 02250_ Sml. Laser destroyed. 02251_ SX-EK9(R): "ARGHSUB!" 02254_ 1A-VBO(c) destroyed. 02255_ Lgt. Treads destroyed. 02256_ 7O-JJR(R) destroyed. 02258_ Subatomizers dissect the Disposable Heat Sink. 02263_ U7-UZP(R) affixes Scrap Shield Fragment to Scrap Shield. 02263_ Structural Scanner destroyed. Map ----- +----------------------------------------------------+ | ?????????????????????????????????????????????????? | | ?????????????????????????????????????????????????? | | ?????????????????????????????????????????????????? | | ?????????????????????????????????????????????????? | | ?????????????????????????????????????????????????? | | ?????????????????????????????????????????????????? | | ?????????????????????????????????????????????????? | | ?????????????????????????????????????????????????? | | ?????????????????????????????????????????????????? | | ?????????????????????????????????????????????????? | | ?????????????????????????????????????????????????? | | ?????????????????????????????????????????????????? | | ?????????????????????????????????????????????????? | | ?????????????????????????????????????????????????? | | ????????????????????????####?????????????????????? | | ????????????????????????####?????????????????????? | | ???????????????????????## ???????####??????????? | | ???????????????????????## ? ########?????????? | | ??????????????????????### ### ## ##?????????? | | ???????????????????###### ## ## ^ ?????????? | | ???????????????????##### ## ; ??????????? | | ???????????????????## ?????????? | | ???????????????????## ?????????? | | ???????????????????## #???????? | | ???????????????????## R ; ##???????? | | ???????????????????##; @ ;; ## ???????? | | ???????????????????## %! ;;# ?## ????????? | | ???????????????????## R ;; ??????????? | | ???????????????????## ;;;# " ?????????? | | ???????????????????## ; ### "???????????? | | ???????????????????## ####; ## ? "??????????? | | ???????????????????### ###### ##??????????????? | | ???????????????????### ##??## ##??????????????? | | ????????????????????## ##?????? ###??????????????? | | ????????????????????## ##?????? ###??????????????? | | ???????????????????? ???????? #???????????????? | | ????????????????????? ??????????????????????????? | | ??????????????????? #??????????????????????????? | | ??????????????????? ###??????????????????????????? | | ???????????????????####??????????????????????????? | | ???????????????>?????????????????????????????????? | | ?????????????????????????????????????????????????? | | ?????????????????????????????????????????????????? | | ?????????????????????????????????????????????????? | | ?????????????????????????????????????????????????? | | ?????????????????????????????????????????????????? | | ?????????????????????????????????????????????????? | | ?????????????????????????????????????????????????? | | ?????????????????????????????????????????????????? | | ?????????????????????????????????????????????????? | +----------------------------------------------------+ Best States ------------- Heat Dissipation 25 Energy Generation 10 Energy Capacity 250 Matter Stores 300 Matter Capacity 300 Sight Range 16 Terrain Scan Range 16 Terrain Scan Density 10 Evasion (%) 55 Targeting Accuracy 5 Recoil Reduction 2 Item Schematics ----------------- None Robot Schematics ------------------ None Fabricated ------------ Nothing Repaired ---------- Nothing Alien Tech Used ----------------- None Achievements -------------- None Challenges ------------ None Game ------ Seed FieldSpliceObliterator Manual? 0 Play Time 00:26:57 Cumulative 15.2 hours Start 2025.07.08 @ 09:24:55 End 2025.07.08 @ 10:12:06 Sessions 1 Manual Loads 0 Difficulty Rogue Special Mode None Game No. 8 Rogue 8 Adventurer 0 Explorer 0 Win Type - Total 2 Types 2/0/0/0/0/0/0/0/0/0 Lore% 25 Gallery% 12 Achievement% 27 Wizard Run 0 Options --------- Layout 1 ASCII 0 Keyboard 0 Movement Mouse Keybinds 0 Fullscreen 1 Font 24/Smallcaps Map View 50x35 Zoom Use 0% Tactical HUD 1 Map Filters NONE Filters NONE Steam 1 RUN: f98c3f9c-ce2c-4a84-bd16-f6f3b61b67c6